Workbook

Sheet ДК
P1: ="ДОКУМЕНТ О КАЧЕСТВЕ"&CHAR(10)&IF($AZ$2="Бетонная смесь","БЕТОННОЙ СМЕСИ","РАСТВОРНОЙ СМЕСИ")&CHAR(10)&"ЗАДАННОГО КАЧЕСТВА ПАРТИИ № "&$AZ$1&"" -> ДОКУМЕНТ О КАЧЕСТВЕ РАСТВОРНОЙ СМЕСИ ЗАДАННОГО КАЧЕСТВА ПАРТИИ №
AZ2: Растворная смесь
B8: =IF($AZ$2="Бетонная смесь","Производитель и поставщик бетонной смеси:","Производитель и поставщик растворной смеси:") -> Производитель и поставщик растворной смеси:
B9: (наименование, адрес, телефон, факс)
B11: Потребитель:
B12: (наименование, адрес, телефон, факс)
B14: Адрес объекта:
B16: Вид конструкции по данным заявки:
B18: =IF($AZ$2="Бетонная смесь","Дата и время отгрузки бетонной смеси:","Дата и время отгрузки растворной смеси:") -> Дата и время отгрузки растворной смеси:
B20: =IF($AZ$2="Бетонная смесь","Вид бетонной смеси и ее условное обозначение:","Вид растворной смеси и ее условное обозначение:") -> Вид растворной смеси и ее условное обозначение:
B22: =IF($AZ$2="Бетонная смесь","Номер номинального состава бетонной смеси:","Номер номинального состава растворной смеси:") -> Номер номинального состава растворной смеси: | Y22: =INDEX(Карта[Карта подбора],MATCH($Y$20,Карта[Условное обозначение],0)) ->  | BE22: ³
B24: =IF(AZ2=AZ2,"Объем бетонной смеси в партии, м³:","Объем растворной смеси в партии, м³:") -> Объем бетонной смеси в партии, м³:
B26: =IF($AZ$2="Бетонная смесь","Марка бетонной смеси по удобоукладываемости или значение удобоукладываемости бетонной смеси","Марка растворной смеси по удобоукладываемости или значение удобоукладываемости растворной смеси") -> Марка растворной смеси по удобоукладываемости или значение удобоукладываемости растворной смеси
B27: (по договору на поставку) на месте укладки у потребителя: | AF27: =INDEX(Карта[Характеристика],MATCH($Y$20,Карта[Условное обозначение],0)) -> 
B29: Другие нормируемые показатели качества на месте укладки | AH29: =INDEX(Карта[Содержание],MATCH($Y$20,Карта[Условное обозначение],0)) -> 
B30: у потребителя (объём вовлеченного воздуха в бетонной смеси), %:
B32: Сохраняемость удобоукладываемости и других нормируемых показателей, ч-мин: | AJ32: =INDEX(Карта[Сохраняемость],MATCH($Y$20,Карта[Условное обозначение],0)) -> 
B34: Наибольшая крупность заполнителя, мм: | Y34: 20мм
B36: =IF($AZ$2="Бетонная смесь","Знак соответствия (в случае, когда бетонная смесь сертифицирована на соответствие теребованиям стандарта):","Знак соответствия (в случае, когда растворная смесь сертифицирована на соответствие теребованиям стандарта):") -> Знак соответствия (в случае, когда растворная смесь сертифицирована на соответствие теребованиям стандарта):
B37: Декларация о соответствии № POCC RU Д-RU.РА01.В.50830/23
B39: =IF($AZ$2="Бетонная смесь","Проектный класс бетона по прочности и требуемая прочность бетона в партии:","Проектная марка раствора по прочности и требуемая прочность раствора в партии:") -> Проектная марка раствора по прочности и требуемая прочность раствора в партии:
B41: - в проектном возрасте: 28 суток | AC41: =INDEX(Карта[Класс],MATCH($Y$20,Карта[Условное обозначение],0)) ->  | AJ41: =INDEX(Карта[Прочность],MATCH($Y$20,Карта[Условное обозначение],0)) -> 
AC42: =IF($AZ$2="Бетонная смесь","класс прочности","марка по прочности") -> марка по прочности | AJ42: требуемая прочность (по договору на поставку)
B44: - в промежуточном возрасте: - суток | AC44: - | AJ44: =INDEX(Карта[Промежуточная прочность],MATCH($Y$20,Карта[Условное обозначение],0)) -> 
AC45: =IF($AZ$2="Бетонная смесь","класс прочности","марка по прочности") -> марка по прочности | AJ45: требуемая прочность (по договору на поставку)
B47: =IF(AZ2=AZ2,"Другие нормируемые показатели качества бетона (при необходимости):","Другие нормируемые показатели качества раствора (при необходимости):") -> Другие нормируемые показатели качества бетона (при необходимости): | AI47: =INDEX(Карта[Сокращение],MATCH($Y$20,Карта[Условное обозначение],0)) -> 
B49: Проектная марка бетона по средней плотности (для легкого бетона): | AI49: -
B51: Наименование и масса добавки (по товарному продукту), кг/м3:
B53: =INDEX(Карта[Наименование],MATCH($Y$20,Карта[Условное обозначение],-1)) ->  | AI53: =INDEX(Карта[кг, расход],MATCH($Y$20,Карта[Условное обозначение],0)) -> 
B55: =INDEX(Карта[Наименование2],MATCH($Y$20,Карта[Условное обозначение],-1)) ->  | AI55: =INDEX(Карта[кг, расход3],MATCH($Y$20,Карта[Условное обозначение],0)) -> 
B59: Класс материалов по удельной эффективной активности естественных радионуклидов, Бк/кг:
AF61: Дата выдачи: | AM61: =Y18 -> 00:00:00
B63: =INDEX(Сотрудники!C3:C12,MATCH($AI$63,Сотрудники!B3:B12,-1)) -> 
A72: Примечание: предприятие гарантирует требуемую прочность бетона в возрасте 28 суток при соблюдении условий и времени транспортировки бетонной смеси до места укладки, выполнения требований действующих нормативно-технической документации по бетонированию конструкций и соблюдении условий твердения бетона

Sheet Пикетаж
B2: Пикетаж
B3: ИССО №4 ПК955+77,65
B4: ИССО №5 ПК979+13,40
B5: ИССО №6 ПК991+50,00
B6: ИССО №10 ПК1050+76,00
B7: ИССО №11 ПК1057+77,69
B8: ИССО №12 ПК1077+14,93
B9: ИССО №13 ПК1091+80,00
B10: ИССО №15 ПК1127+43,41
B11: ИССО №18 ПК1215+50,00
B12: ИССО №19 ПК1238+75,00
B13: ИССО №20 ПК1264+34,80
B14: ИССО №22 ПК1304+18,35

Sheet Сотрудники
B2: Ф.И.О. | C2: Должность
B3: / И.П. Собакин /
B4: / О.В. Горячева /
B5: / А.И. Бахтияров /
B6: / Г.П. Перевера /
B7: / Е.Н. Антонов /
B8: / А.Э. Тыринов /
B9: / А.З. Галеев /
B10: / Н.Р. Салахов /
B11: / Ю.А. Именитова /

Sheet Карта подбора
E1: Бетонная смесь | F1: 1.28
E2: Растворная смесь | F2: 0.098 | I2: Ритент Ультра | L2: Ритент Аэр
A3: Класс | B3: Вид смеси | C3: Условное обозначение | D3: Сокращение | E3: Карта подбора | F3: Прочность | G3: Промежуточная прочность | H3: Расход цемента | I3: Наименование | J3: %, расход | K3: кг, расход | L3: Наименование2 | M3: %, расход2 | N3: кг, расход3 | O3: Радионуклиды, Бк/кг | P3: Подвижность | Q3: Характеристика | R3: Содержание | S3: Сохраняемость
A4: =IFERROR(IF(Карта[[#This Row],[Вид смеси]]="Бетонная смесь",TRIM(LEFTB(SUBSTITUTE(MID(Карта[[#This Row],[Условное обозначение]],SEARCH(" ",Карта[[#This Row],[Условное обозначение]])+1,99)," ",REPT(" ",99)),99)),TRIM(LEFTB(MID(Карта[[#This Row],[Условное обозначение]],SEARCH("М",Карта[[#This Row],[Условное обозначение]])+0,99),SEARCH(" П",MID(Карта[[#This Row],[Условное обозначение]],SEARCH("М",Карта[[#This Row],[Условное обозначение]])+0,99))))),"-") -> В7,5 | B4: Бетонная смесь | C4: БСТ В7,5 П4 F₁50 W4 ГОСТ 7473-2010 | D4: =IF(Карта[[#This Row],[Условное обозначение]]="","",IF(Карта[[#This Row],[Вид смеси]]="Бетонная смесь",LEFTB(MID(Карта[[#This Row],[Условное обозначение]],SEARCH("F",Карта[[#This Row],[Условное обозначение]])+0,99),SEARCH(" Г",MID(Карта[[#This Row],[Условное обозначение]],SEARCH("F",Карта[[#This Row],[Условное обозначение]])+0,99))),LEFTB(MID(Карта[[#This Row],[Условное обозначение]],SEARCH("М",Карта[[#This Row],[Условное обозначение]])+0,99),SEARCH(" П",MID(Карта[[#This Row],[Условное обозначение]],SEARCH("М",Карта[[#This Row],[Условное обозначение]])+0,99))))) -> F₁50 W4 | E4: К.П №1 МТС/У | F4: =IFERROR(IF(Карта[[#This Row],[Вид смеси]]="Бетонная смесь",ROUND(RIGHT(Карта[[#This Row],[Класс]],LEN(Карта[[#This Row],[Класс]])-1)*$F$1,2),ROUND(RIGHT(Карта[[#This Row],[Класс]],LEN(Карта[[#This Row],[Класс]])-1)*$F$2,2)),"-") -> 9.6 | G4: =IF(Карта[[#This Row],[Условное обозначение]]="","",Карта[[#This Row],[Прочность]]*70%) -> 6.72 | H4: 220 | I4: =IF(Карта[[#This Row],[Условное обозначение]]="","",$I$2) -> Ритент Ультра | J4: 0.7 | K4: =IF(Карта[[#This Row],[Условное обозначение]]="","",Карта[[#This Row],[Расход цемента]]*Карта[[#This Row],[%, расход]]/100) -> 1.54 | L4: =IF(Карта[[#This Row],[Условное обозначение]]="","",$L$2) -> Ритент Аэр | M4: 0.1 | N4: =IF(Карта[[#This Row],[Условное обозначение]]="","",Карта[[#This Row],[Расход цемента]]*Карта[[#This Row],[%, расход2]]/100) -> 0.22 | O4: 265.7 | P4: =IFERROR(IF(Карта[[#This Row],[Вид смеси]]="Бетонная смесь",LEFTB(MID(Карта[[#This Row],[Условное обозначение]],SEARCH("П",Карта[[#This Row],[Условное обозначение]])+0,99),SEARCH(" F",MID(Карта[[#This Row],[Условное обозначение]],SEARCH("П",Карта[[#This Row],[Условное обозначение]])+0,99))),LEFTB(MID(Карта[[#This Row],[Условное обозначение]],SEARCH("П",Карта[[#This Row],[Условное обозначение]])+0,99),SEARCH(" Г",MID(Карта[[#This Row],[Условное обозначение]],SEARCH("П",Карта[[#This Row],[Условное обозначение]])+0,99)))),"-") -> П4 | Q4: =IFERROR(INDEX(Норматив[Параметры],MATCH(Карта[[#This Row],[Подвижность]],Норматив[Характеристика],1)),"-") -> П4 (16-20 см) | R4: =IF(Карта[[#This Row],[Вид смеси]]="Бетонная смесь","воздухововлечение - 4-6%","-") -> воздухововлечение - 4-6% | S4: От 1ч 30 мин до 3ч 00 мин
A5: =IFERROR(IF(Карта[[#This Row],[Вид смеси]]="Бетонная смесь",TRIM(LEFTB(SUBSTITUTE(MID(Карта[[#This Row],[Условное обозначение]],SEARCH(" ",Карта[[#This Row],[Условное обозначение]])+1,99)," ",REPT(" ",99)),99)),TRIM(LEFTB(MID(Карта[[#This Row],[Условное обозначение]],SEARCH("М",Карта[[#This Row],[Условное обозначение]])+0,99),SEARCH(" П",MID(Карта[[#This Row],[Условное обозначение]],SEARCH("М",Карта[[#This Row],[Условное обозначение]])+0,99))))),"-") -> В15 | B5: Бетонная смесь | C5: БСТ В15 П4 F₁75 W4 ГОСТ 7473-2010 | D5: =IF(Карта[[#This Row],[Условное обозначение]]="","",IF(Карта[[#This Row],[Вид смеси]]="Бетонная смесь",LEFTB(MID(Карта[[#This Row],[Условное обозначение]],SEARCH("F",Карта[[#This Row],[Условное обозначение]])+0,99),SEARCH(" Г",MID(Карта[[#This Row],[Условное обозначение]],SEARCH("F",Карта[[#This Row],[Условное обозначение]])+0,99))),LEFTB(MID(Карта[[#This Row],[Условное обозначение]],SEARCH("М",Карта[[#This Row],[Условное обозначение]])+0,99),SEARCH(" П",MID(Карта[[#This Row],[Условное обозначение]],SEARCH("М",Карта[[#This Row],[Условное обозначение]])+0,99))))) -> F₁75 W4 | E5: К.П №2 МТС/У | F5: =IFERROR(IF(Карта[[#This Row],[Вид смеси]]="Бетонная смесь",ROUND(RIGHT(Карта[[#This Row],[Класс]],LEN(Карта[[#This Row],[Класс]])-1)*$F$1,2),ROUND(RIGHT(Карта[[#This Row],[Класс]],LEN(Карта[[#This Row],[Класс]])-1)*$F$2,2)),"-") -> 19.2 | G5: =IF(Карта[[#This Row],[Условное обозначение]]="","",Карта[[#This Row],[Прочность]]*70%) -> 13.44 | H5: 260 | I5: =IF(Карта[[#This Row],[Условное обозначение]]="","",$I$2) -> Ритент Ультра | J5: 0.7 | K5: =IF(Карта[[#This Row],[Условное обозначение]]="","",Карта[[#This Row],[Расход цемента]]*Карта[[#This Row],[%, расход]]/100) -> 1.82 | L5: =IF(Карта[[#This Row],[Условное обозначение]]="","",$L$2) -> Ритент Аэр | M5: 0.1 | N5: =IF(Карта[[#This Row],[Условное обозначение]]="","",Карта[[#This Row],[Расход цемента]]*Карта[[#This Row],[%, расход2]]/100) -> 0.26 | O5: 265.7 | P5: =IFERROR(IF(Карта[[#This Row],[Вид смеси]]="Бетонная смесь",LEFTB(MID(Карта[[#This Row],[Условное обозначение]],SEARCH("П",Карта[[#This Row],[Условное обозначение]])+0,99),SEARCH(" F",MID(Карта[[#This Row],[Условное обозначение]],SEARCH("П",Карта[[#This Row],[Условное обозначение]])+0,99))),LEFTB(MID(Карта[[#This Row],[Условное обозначение]],SEARCH("П",Карта[[#This Row],[Условное обозначение]])+0,99),SEARCH(" Г",MID(Карта[[#This Row],[Условное обозначение]],SEARCH("П",Карта[[#This Row],[Условное обозначение]])+0,99)))),"-") -> П4 | Q5: =IFERROR(INDEX(Норматив[Параметры],MATCH(Карта[[#This Row],[Подвижность]],Норматив[Характеристика],1)),"-") -> П4 (16-20 см) | R5: =IF(Карта[[#This Row],[Вид смеси]]="Бетонная смесь","воздухововлечение - 4-6%","-") -> воздухововлечение - 4-6% | S5: От 1ч 30 мин до 3ч 00 мин
A6: =IFERROR(IF(Карта[[#This Row],[Вид смеси]]="Бетонная смесь",TRIM(LEFTB(SUBSTITUTE(MID(Карта[[#This Row],[Условное обозначение]],SEARCH(" ",Карта[[#This Row],[Условное обозначение]])+1,99)," ",REPT(" ",99)),99)),TRIM(LEFTB(MID(Карта[[#This Row],[Условное обозначение]],SEARCH("М",Карта[[#This Row],[Условное обозначение]])+0,99),SEARCH(" П",MID(Карта[[#This Row],[Условное обозначение]],SEARCH("М",Карта[[#This Row],[Условное обозначение]])+0,99))))),"-") -> В20 | B6: Бетонная смесь | C6: БСТ В20 П4 F₂300 W12 ГОСТ 7473-2010 | D6: =IF(Карта[[#This Row],[Условное обозначение]]="","",IF(Карта[[#This Row],[Вид смеси]]="Бетонная смесь",LEFTB(MID(Карта[[#This Row],[Условное обозначение]],SEARCH("F",Карта[[#This Row],[Условное обозначение]])+0,99),SEARCH(" Г",MID(Карта[[#This Row],[Условное обозначение]],SEARCH("F",Карта[[#This Row],[Условное обозначение]])+0,99))),LEFTB(MID(Карта[[#This Row],[Условное обозначение]],SEARCH("М",Карта[[#This Row],[Условное обозначение]])+0,99),SEARCH(" П",MID(Карта[[#This Row],[Условное обозначение]],SEARCH("М",Карта[[#This Row],[Условное обозначение]])+0,99))))) -> F₂300 W12 | E6: К.П №11 МТС/У | F6: =IFERROR(IF(Карта[[#This Row],[Вид смеси]]="Бетонная смесь",ROUND(RIGHT(Карта[[#This Row],[Класс]],LEN(Карта[[#This Row],[Класс]])-1)*$F$1,2),ROUND(RIGHT(Карта[[#This Row],[Класс]],LEN(Карта[[#This Row],[Класс]])-1)*$F$2,2)),"-") -> 25.6 | G6: =IF(Карта[[#This Row],[Условное обозначение]]="","",Карта[[#This Row],[Прочность]]*70%) -> 17.92 | H6: 420 | I6: =IF(Карта[[#This Row],[Условное обозначение]]="","",$I$2) -> Ритент Ультра | J6: 1 | K6: =IF(Карта[[#This Row],[Условное обозначение]]="","",Карта[[#This Row],[Расход цемента]]*Карта[[#This Row],[%, расход]]/100) -> 4.2 | L6: =IF(Карта[[#This Row],[Условное обозначение]]="","",$L$2) -> Ритент Аэр | M6: 0.15 | N6: =IF(Карта[[#This Row],[Условное обозначение]]="","",Карта[[#This Row],[Расход цемента]]*Карта[[#This Row],[%, расход2]]/100) -> 0.63 | O6: 265.7 | P6: =IFERROR(IF(Карта[[#This Row],[Вид смеси]]="Бетонная смесь",LEFTB(MID(Карта[[#This Row],[Условное обозначение]],SEARCH("П",Карта[[#This Row],[Условное обозначение]])+0,99),SEARCH(" F",MID(Карта[[#This Row],[Условное обозначение]],SEARCH("П",Карта[[#This Row],[Условное обозначение]])+0,99))),LEFTB(MID(Карта[[#This Row],[Условное обозначение]],SEARCH("П",Карта[[#This Row],[Условное обозначение]])+0,99),SEARCH(" Г",MID(Карта[[#This Row],[Условное обозначение]],SEARCH("П",Карта[[#This Row],[Условное обозначение]])+0,99)))),"-") -> П4 | Q6: =IFERROR(INDEX(Норматив[Параметры],MATCH(Карта[[#This Row],[Подвижность]],Норматив[Характеристика],1)),"-") -> П4 (16-20 см) | R6: =IF(Карта[[#This Row],[Вид смеси]]="Бетонная смесь","воздухововлечение - 4-6%","-") -> воздухововлечение - 4-6% | S6: От 1ч 30 мин до 3ч 00 мин
A7: =IFERROR(IF(Карта[[#This Row],[Вид смеси]]="Бетонная смесь",TRIM(LEFTB(SUBSTITUTE(MID(Карта[[#This Row],[Условное обозначение]],SEARCH(" ",Карта[[#This Row],[Условное обозначение]])+1,99)," ",REPT(" ",99)),99)),TRIM(LEFTB(MID(Карта[[#This Row],[Условное обозначение]],SEARCH("М",Карта[[#This Row],[Условное обозначение]])+0,99),SEARCH(" П",MID(Карта[[#This Row],[Условное обозначение]],SEARCH("М",Карта[[#This Row],[Условное обозначение]])+0,99))))),"-") -> В25 | B7: Бетонная смесь | C7: БСТ В25 П4 F₁200 W8 ГОСТ 7473-2010 | D7: =IF(Карта[[#This Row],[Условное обозначение]]="","",IF(Карта[[#This Row],[Вид смеси]]="Бетонная смесь",LEFTB(MID(Карта[[#This Row],[Условное обозначение]],SEARCH("F",Карта[[#This Row],[Условное обозначение]])+0,99),SEARCH(" Г",MID(Карта[[#This Row],[Условное обозначение]],SEARCH("F",Карта[[#This Row],[Условное обозначение]])+0,99))),LEFTB(MID(Карта[[#This Row],[Условное обозначение]],SEARCH("М",Карта[[#This Row],[Условное обозначение]])+0,99),SEARCH(" П",MID(Карта[[#This Row],[Условное обозначение]],SEARCH("М",Карта[[#This Row],[Условное обозначение]])+0,99))))) -> F₁200 W8 | E7: К.П №3 МТС/У | F7: =IFERROR(IF(Карта[[#This Row],[Вид смеси]]="Бетонная смесь",ROUND(RIGHT(Карта[[#This Row],[Класс]],LEN(Карта[[#This Row],[Класс]])-1)*$F$1,2),ROUND(RIGHT(Карта[[#This Row],[Класс]],LEN(Карта[[#This Row],[Класс]])-1)*$F$2,2)),"-") -> 32 | G7: =IF(Карта[[#This Row],[Условное обозначение]]="","",Карта[[#This Row],[Прочность]]*70%) -> 22.4 | H7: 320 | I7: =IF(Карта[[#This Row],[Условное обозначение]]="","",$I$2) -> Ритент Ультра | J7: 0.7 | K7: =IF(Карта[[#This Row],[Условное обозначение]]="","",Карта[[#This Row],[Расход цемента]]*Карта[[#This Row],[%, расход]]/100) -> 2.24 | L7: =IF(Карта[[#This Row],[Условное обозначение]]="","",$L$2) -> Ритент Аэр | M7: 0.1 | N7: =IF(Карта[[#This Row],[Условное обозначение]]="","",Карта[[#This Row],[Расход цемента]]*Карта[[#This Row],[%, расход2]]/100) -> 0.32 | O7: 265.7 | P7: =IFERROR(IF(Карта[[#This Row],[Вид смеси]]="Бетонная смесь",LEFTB(MID(Карта[[#This Row],[Условное обозначение]],SEARCH("П",Карта[[#This Row],[Условное обозначение]])+0,99),SEARCH(" F",MID(Карта[[#This Row],[Условное обозначение]],SEARCH("П",Карта[[#This Row],[Условное обозначение]])+0,99))),LEFTB(MID(Карта[[#This Row],[Условное обозначение]],SEARCH("П",Карта[[#This Row],[Условное обозначение]])+0,99),SEARCH(" Г",MID(Карта[[#This Row],[Условное обозначение]],SEARCH("П",Карта[[#This Row],[Условное обозначение]])+0,99)))),"-") -> П4 | Q7: =IFERROR(INDEX(Норматив[Параметры],MATCH(Карта[[#This Row],[Подвижность]],Норматив[Характеристика],1)),"-") -> П4 (16-20 см) | R7: =IF(Карта[[#This Row],[Вид смеси]]="Бетонная смесь","воздухововлечение - 4-6%","-") -> воздухововлечение - 4-6% | S7: От 1ч 30 мин до 3ч 00 мин
A8: =IFERROR(IF(Карта[[#This Row],[Вид смеси]]="Бетонная смесь",TRIM(LEFTB(SUBSTITUTE(MID(Карта[[#This Row],[Условное обозначение]],SEARCH(" ",Карта[[#This Row],[Условное обозначение]])+1,99)," ",REPT(" ",99)),99)),TRIM(LEFTB(MID(Карта[[#This Row],[Условное обозначение]],SEARCH("М",Карта[[#This Row],[Условное обозначение]])+0,99),SEARCH(" П",MID(Карта[[#This Row],[Условное обозначение]],SEARCH("М",Карта[[#This Row],[Условное обозначение]])+0,99))))),"-") -> В25 | B8: Бетонная смесь | C8: БСТ В25 П4 F₁300 W8 ГОСТ 7473-2010 | D8: =IF(Карта[[#This Row],[Условное обозначение]]="","",IF(Карта[[#This Row],[Вид смеси]]="Бетонная смесь",LEFTB(MID(Карта[[#This Row],[Условное обозначение]],SEARCH("F",Карта[[#This Row],[Условное обозначение]])+0,99),SEARCH(" Г",MID(Карта[[#This Row],[Условное обозначение]],SEARCH("F",Карта[[#This Row],[Условное обозначение]])+0,99))),LEFTB(MID(Карта[[#This Row],[Условное обозначение]],SEARCH("М",Карта[[#This Row],[Условное обозначение]])+0,99),SEARCH(" П",MID(Карта[[#This Row],[Условное обозначение]],SEARCH("М",Карта[[#This Row],[Условное обозначение]])+0,99))))) -> F₁300 W8 | E8: К.П №9 МТС/У | F8: =IFERROR(IF(Карта[[#This Row],[Вид смеси]]="Бетонная смесь",ROUND(RIGHT(Карта[[#This Row],[Класс]],LEN(Карта[[#This Row],[Класс]])-1)*$F$1,2),ROUND(RIGHT(Карта[[#This Row],[Класс]],LEN(Карта[[#This Row],[Класс]])-1)*$F$2,2)),"-") -> 32 | G8: =IF(Карта[[#This Row],[Условное обозначение]]="","",Карта[[#This Row],[Прочность]]*70%) -> 22.4 | H8: 360 | I8: =IF(Карта[[#This Row],[Условное обозначение]]="","",$I$2) -> Ритент Ультра | J8: 1 | K8: =IF(Карта[[#This Row],[Условное обозначение]]="","",Карта[[#This Row],[Расход цемента]]*Карта[[#This Row],[%, расход]]/100) -> 3.6 | L8: =IF(Карта[[#This Row],[Условное обозначение]]="","",$L$2) -> Ритент Аэр | M8: 0.15 | N8: =IF(Карта[[#This Row],[Условное обозначение]]="","",Карта[[#This Row],[Расход цемента]]*Карта[[#This Row],[%, расход2]]/100) -> 0.54 | O8: 265.7 | P8: =IFERROR(IF(Карта[[#This Row],[Вид смеси]]="Бетонная смесь",LEFTB(MID(Карта[[#This Row],[Условное обозначение]],SEARCH("П",Карта[[#This Row],[Условное обозначение]])+0,99),SEARCH(" F",MID(Карта[[#This Row],[Условное обозначение]],SEARCH("П",Карта[[#This Row],[Условное обозначение]])+0,99))),LEFTB(MID(Карта[[#This Row],[Условное обозначение]],SEARCH("П",Карта[[#This Row],[Условное обозначение]])+0,99),SEARCH(" Г",MID(Карта[[#This Row],[Условное обозначение]],SEARCH("П",Карта[[#This Row],[Условное обозначение]])+0,99)))),"-") -> П4 | Q8: =IFERROR(INDEX(Норматив[Параметры],MATCH(Карта[[#This Row],[Подвижность]],Норматив[Характеристика],1)),"-") -> П4 (16-20 см) | R8: =IF(Карта[[#This Row],[Вид смеси]]="Бетонная смесь","воздухововлечение - 4-6%","-") -> воздухововлечение - 4-6% | S8: От 1ч 30 мин до 3ч 00 мин
A9: =IFERROR(IF(Карта[[#This Row],[Вид смеси]]="Бетонная смесь",TRIM(LEFTB(SUBSTITUTE(MID(Карта[[#This Row],[Условное обозначение]],SEARCH(" ",Карта[[#This Row],[Условное обозначение]])+1,99)," ",REPT(" ",99)),99)),TRIM(LEFTB(MID(Карта[[#This Row],[Условное обозначение]],SEARCH("М",Карта[[#This Row],[Условное обозначение]])+0,99),SEARCH(" П",MID(Карта[[#This Row],[Условное обозначение]],SEARCH("М",Карта[[#This Row],[Условное обозначение]])+0,99))))),"-") -> В25 | B9: Бетонная смесь | C9: БСТ В25 П4 F₂300 W12 ГОСТ 7473-2010 | D9: =IF(Карта[[#This Row],[Условное обозначение]]="","",IF(Карта[[#This Row],[Вид смеси]]="Бетонная смесь",LEFTB(MID(Карта[[#This Row],[Условное обозначение]],SEARCH("F",Карта[[#This Row],[Условное обозначение]])+0,99),SEARCH(" Г",MID(Карта[[#This Row],[Условное обозначение]],SEARCH("F",Карта[[#This Row],[Условное обозначение]])+0,99))),LEFTB(MID(Карта[[#This Row],[Условное обозначение]],SEARCH("М",Карта[[#This Row],[Условное обозначение]])+0,99),SEARCH(" П",MID(Карта[[#This Row],[Условное обозначение]],SEARCH("М",Карта[[#This Row],[Условное обозначение]])+0,99))))) -> F₂300 W12 | E9: К.П №11 МТС/У | F9: =IFERROR(IF(Карта[[#This Row],[Вид смеси]]="Бетонная смесь",ROUND(RIGHT(Карта[[#This Row],[Класс]],LEN(Карта[[#This Row],[Класс]])-1)*$F$1,2),ROUND(RIGHT(Карта[[#This Row],[Класс]],LEN(Карта[[#This Row],[Класс]])-1)*$F$2,2)),"-") -> 32 | G9: =IF(Карта[[#This Row],[Условное обозначение]]="","",Карта[[#This Row],[Прочность]]*70%) -> 22.4 | H9: 420 | I9: =IF(Карта[[#This Row],[Условное обозначение]]="","",$I$2) -> Ритент Ультра | J9: 1 | K9: =IF(Карта[[#This Row],[Условное обозначение]]="","",Карта[[#This Row],[Расход цемента]]*Карта[[#This Row],[%, расход]]/100) -> 4.2 | L9: =IF(Карта[[#This Row],[Условное обозначение]]="","",$L$2) -> Ритент Аэр | M9: 0.15 | N9: =IF(Карта[[#This Row],[Условное обозначение]]="","",Карта[[#This Row],[Расход цемента]]*Карта[[#This Row],[%, расход2]]/100) -> 0.63 | O9: 265.7 | P9: =IFERROR(IF(Карта[[#This Row],[Вид смеси]]="Бетонная смесь",LEFTB(MID(Карта[[#This Row],[Условное обозначение]],SEARCH("П",Карта[[#This Row],[Условное обозначение]])+0,99),SEARCH(" F",MID(Карта[[#This Row],[Условное обозначение]],SEARCH("П",Карта[[#This Row],[Условное обозначение]])+0,99))),LEFTB(MID(Карта[[#This Row],[Условное обозначение]],SEARCH("П",Карта[[#This Row],[Условное обозначение]])+0,99),SEARCH(" Г",MID(Карта[[#This Row],[Условное обозначение]],SEARCH("П",Карта[[#This Row],[Условное обозначение]])+0,99)))),"-") -> П4 | Q9: =IFERROR(INDEX(Норматив[Параметры],MATCH(Карта[[#This Row],[Подвижность]],Норматив[Характеристика],1)),"-") -> П4 (16-20 см) | R9: =IF(Карта[[#This Row],[Вид смеси]]="Бетонная смесь","воздухововлечение - 4-6%","-") -> воздухововлечение - 4-6% | S9: От 1ч 30 мин до 3ч 00 мин
A10: =IFERROR(IF(Карта[[#This Row],[Вид смеси]]="Бетонная смесь",TRIM(LEFTB(SUBSTITUTE(MID(Карта[[#This Row],[Условное обозначение]],SEARCH(" ",Карта[[#This Row],[Условное обозначение]])+1,99)," ",REPT(" ",99)),99)),TRIM(LEFTB(MID(Карта[[#This Row],[Условное обозначение]],SEARCH("М",Карта[[#This Row],[Условное обозначение]])+0,99),SEARCH(" П",MID(Карта[[#This Row],[Условное обозначение]],SEARCH("М",Карта[[#This Row],[Условное обозначение]])+0,99))))),"-") -> В30 | B10: Бетонная смесь | C10: БСТ В30 П4 F₁200 W6 ГОСТ 7473-2010 | D10: =IF(Карта[[#This Row],[Условное обозначение]]="","",IF(Карта[[#This Row],[Вид смеси]]="Бетонная смесь",LEFTB(MID(Карта[[#This Row],[Условное обозначение]],SEARCH("F",Карта[[#This Row],[Условное обозначение]])+0,99),SEARCH(" Г",MID(Карта[[#This Row],[Условное обозначение]],SEARCH("F",Карта[[#This Row],[Условное обозначение]])+0,99))),LEFTB(MID(Карта[[#This Row],[Условное обозначение]],SEARCH("М",Карта[[#This Row],[Условное обозначение]])+0,99),SEARCH(" П",MID(Карта[[#This Row],[Условное обозначение]],SEARCH("М",Карта[[#This Row],[Условное обозначение]])+0,99))))) -> F₁200 W6 | E10: К.П №9 МСТ/У | F10: =IFERROR(IF(Карта[[#This Row],[Вид смеси]]="Бетонная смесь",ROUND(RIGHT(Карта[[#This Row],[Класс]],LEN(Карта[[#This Row],[Класс]])-1)*$F$1,2),ROUND(RIGHT(Карта[[#This Row],[Класс]],LEN(Карта[[#This Row],[Класс]])-1)*$F$2,2)),"-") -> 38.4 | G10: =IF(Карта[[#This Row],[Условное обозначение]]="","",Карта[[#This Row],[Прочность]]*70%) -> 26.88 | H10: 360 | I10: =IF(Карта[[#This Row],[Условное обозначение]]="","",$I$2) -> Ритент Ультра | J10: 1 | K10: =IF(Карта[[#This Row],[Условное обозначение]]="","",Карта[[#This Row],[Расход цемента]]*Карта[[#This Row],[%, расход]]/100) -> 3.6 | L10: =IF(Карта[[#This Row],[Условное обозначение]]="","",$L$2) -> Ритент Аэр | M10: 0.15 | N10: =IF(Карта[[#This Row],[Условное обозначение]]="","",Карта[[#This Row],[Расход цемента]]*Карта[[#This Row],[%, расход2]]/100) -> 0.54 | O10: 265.7 | P10: =IFERROR(IF(Карта[[#This Row],[Вид смеси]]="Бетонная смесь",LEFTB(MID(Карта[[#This Row],[Условное обозначение]],SEARCH("П",Карта[[#This Row],[Условное обозначение]])+0,99),SEARCH(" F",MID(Карта[[#This Row],[Условное обозначение]],SEARCH("П",Карта[[#This Row],[Условное обозначение]])+0,99))),LEFTB(MID(Карта[[#This Row],[Условное обозначение]],SEARCH("П",Карта[[#This Row],[Условное обозначение]])+0,99),SEARCH(" Г",MID(Карта[[#This Row],[Условное обозначение]],SEARCH("П",Карта[[#This Row],[Условное обозначение]])+0,99)))),"-") -> П4 | Q10: =IFERROR(INDEX(Норматив[Параметры],MATCH(Карта[[#This Row],[Подвижность]],Норматив[Характеристика],1)),"-") -> П4 (16-20 см) | R10: =IF(Карта[[#This Row],[Вид смеси]]="Бетонная смесь","воздухововлечение - 4-6%","-") -> воздухововлечение - 4-6% | S10: От 1ч 30 мин до 3ч 00 мин
A11: =IFERROR(IF(Карта[[#This Row],[Вид смеси]]="Бетонная смесь",TRIM(LEFTB(SUBSTITUTE(MID(Карта[[#This Row],[Условное обозначение]],SEARCH(" ",Карта[[#This Row],[Условное обозначение]])+1,99)," ",REPT(" ",99)),99)),TRIM(LEFTB(MID(Карта[[#This Row],[Условное обозначение]],SEARCH("М",Карта[[#This Row],[Условное обозначение]])+0,99),SEARCH(" П",MID(Карта[[#This Row],[Условное обозначение]],SEARCH("М",Карта[[#This Row],[Условное обозначение]])+0,99))))),"-") -> В30 | B11: Бетонная смесь | C11: БСТ В30 П4 F₁300 W8 ГОСТ 7473-2010 | D11: =IF(Карта[[#This Row],[Условное обозначение]]="","",IF(Карта[[#This Row],[Вид смеси]]="Бетонная смесь",LEFTB(MID(Карта[[#This Row],[Условное обозначение]],SEARCH("F",Карта[[#This Row],[Условное обозначение]])+0,99),SEARCH(" Г",MID(Карта[[#This Row],[Условное обозначение]],SEARCH("F",Карта[[#This Row],[Условное обозначение]])+0,99))),LEFTB(MID(Карта[[#This Row],[Условное обозначение]],SEARCH("М",Карта[[#This Row],[Условное обозначение]])+0,99),SEARCH(" П",MID(Карта[[#This Row],[Условное обозначение]],SEARCH("М",Карта[[#This Row],[Условное обозначение]])+0,99))))) -> F₁300 W8 | E11: К.П №9 МСТ/У | F11: =IFERROR(IF(Карта[[#This Row],[Вид смеси]]="Бетонная смесь",ROUND(RIGHT(Карта[[#This Row],[Класс]],LEN(Карта[[#This Row],[Класс]])-1)*$F$1,2),ROUND(RIGHT(Карта[[#This Row],[Класс]],LEN(Карта[[#This Row],[Класс]])-1)*$F$2,2)),"-") -> 38.4 | G11: =IF(Карта[[#This Row],[Условное обозначение]]="","",Карта[[#This Row],[Прочность]]*70%) -> 26.88 | H11: 360 | I11: =IF(Карта[[#This Row],[Условное обозначение]]="","",$I$2) -> Ритент Ультра | J11: 1 | K11: =IF(Карта[[#This Row],[Условное обозначение]]="","",Карта[[#This Row],[Расход цемента]]*Карта[[#This Row],[%, расход]]/100) -> 3.6 | L11: =IF(Карта[[#This Row],[Условное обозначение]]="","",$L$2) -> Ритент Аэр | M11: 0.15 | N11: =IF(Карта[[#This Row],[Условное обозначение]]="","",Карта[[#This Row],[Расход цемента]]*Карта[[#This Row],[%, расход2]]/100) -> 0.54 | O11: 265.7 | P11: =IFERROR(IF(Карта[[#This Row],[Вид смеси]]="Бетонная смесь",LEFTB(MID(Карта[[#This Row],[Условное обозначение]],SEARCH("П",Карта[[#This Row],[Условное обозначение]])+0,99),SEARCH(" F",MID(Карта[[#This Row],[Условное обозначение]],SEARCH("П",Карта[[#This Row],[Условное обозначение]])+0,99))),LEFTB(MID(Карта[[#This Row],[Условное обозначение]],SEARCH("П",Карта[[#This Row],[Условное обозначение]])+0,99),SEARCH(" Г",MID(Карта[[#This Row],[Условное обозначение]],SEARCH("П",Карта[[#This Row],[Условное обозначение]])+0,99)))),"-") -> П4 | Q11: =IFERROR(INDEX(Норматив[Параметры],MATCH(Карта[[#This Row],[Подвижность]],Норматив[Характеристика],1)),"-") -> П4 (16-20 см) | R11: =IF(Карта[[#This Row],[Вид смеси]]="Бетонная смесь","воздухововлечение - 4-6%","-") -> воздухововлечение - 4-6% | S11: От 1ч 30 мин до 3ч 00 мин
A12: =IFERROR(IF(Карта[[#This Row],[Вид смеси]]="Бетонная смесь",TRIM(LEFTB(SUBSTITUTE(MID(Карта[[#This Row],[Условное обозначение]],SEARCH(" ",Карта[[#This Row],[Условное обозначение]])+1,99)," ",REPT(" ",99)),99)),TRIM(LEFTB(MID(Карта[[#This Row],[Условное обозначение]],SEARCH("М",Карта[[#This Row],[Условное обозначение]])+0,99),SEARCH(" П",MID(Карта[[#This Row],[Условное обозначение]],SEARCH("М",Карта[[#This Row],[Условное обозначение]])+0,99))))),"-") -> В30 | B12: Бетонная смесь | C12: БСТ В30 П4 F₂300 W12 ГОСТ 7473-2010 | D12: =IF(Карта[[#This Row],[Условное обозначение]]="","",IF(Карта[[#This Row],[Вид смеси]]="Бетонная смесь",LEFTB(MID(Карта[[#This Row],[Условное обозначение]],SEARCH("F",Карта[[#This Row],[Условное обозначение]])+0,99),SEARCH(" Г",MID(Карта[[#This Row],[Условное обозначение]],SEARCH("F",Карта[[#This Row],[Условное обозначение]])+0,99))),LEFTB(MID(Карта[[#This Row],[Условное обозначение]],SEARCH("М",Карта[[#This Row],[Условное обозначение]])+0,99),SEARCH(" П",MID(Карта[[#This Row],[Условное обозначение]],SEARCH("М",Карта[[#This Row],[Условное обозначение]])+0,99))))) -> F₂300 W12 | E12: К.П №11 МТС/У | F12: =IFERROR(IF(Карта[[#This Row],[Вид смеси]]="Бетонная смесь",ROUND(RIGHT(Карта[[#This Row],[Класс]],LEN(Карта[[#This Row],[Класс]])-1)*$F$1,2),ROUND(RIGHT(Карта[[#This Row],[Класс]],LEN(Карта[[#This Row],[Класс]])-1)*$F$2,2)),"-") -> 38.4 | G12: =IF(Карта[[#This Row],[Условное обозначение]]="","",Карта[[#This Row],[Прочность]]*70%) -> 26.88 | H12: 420 | I12: =IF(Карта[[#This Row],[Условное обозначение]]="","",$I$2) -> Ритент Ультра | J12: 1 | K12: =IF(Карта[[#This Row],[Условное обозначение]]="","",Карта[[#This Row],[Расход цемента]]*Карта[[#This Row],[%, расход]]/100) -> 4.2 | L12: =IF(Карта[[#This Row],[Условное обозначение]]="","",$L$2) -> Ритент Аэр | M12: 0.15 | N12: =IF(Карта[[#This Row],[Условное обозначение]]="","",Карта[[#This Row],[Расход цемента]]*Карта[[#This Row],[%, расход2]]/100) -> 0.63 | O12: 265.7 | P12: =IFERROR(IF(Карта[[#This Row],[Вид смеси]]="Бетонная смесь",LEFTB(MID(Карта[[#This Row],[Условное обозначение]],SEARCH("П",Карта[[#This Row],[Условное обозначение]])+0,99),SEARCH(" F",MID(Карта[[#This Row],[Условное обозначение]],SEARCH("П",Карта[[#This Row],[Условное обозначение]])+0,99))),LEFTB(MID(Карта[[#This Row],[Условное обозначение]],SEARCH("П",Карта[[#This Row],[Условное обозначение]])+0,99),SEARCH(" Г",MID(Карта[[#This Row],[Условное обозначение]],SEARCH("П",Карта[[#This Row],[Условное обозначение]])+0,99)))),"-") -> П4 | Q12: =IFERROR(INDEX(Норматив[Параметры],MATCH(Карта[[#This Row],[Подвижность]],Норматив[Характеристика],1)),"-") -> П4 (16-20 см) | R12: =IF(Карта[[#This Row],[Вид смеси]]="Бетонная смесь","воздухововлечение - 4-6%","-") -> воздухововлечение - 4-6% | S12: От 1ч 30 мин до 3ч 00 мин
A13: =IFERROR(IF(Карта[[#This Row],[Вид смеси]]="Бетонная смесь",TRIM(LEFTB(SUBSTITUTE(MID(Карта[[#This Row],[Условное обозначение]],SEARCH(" ",Карта[[#This Row],[Условное обозначение]])+1,99)," ",REPT(" ",99)),99)),TRIM(LEFTB(MID(Карта[[#This Row],[Условное обозначение]],SEARCH("М",Карта[[#This Row],[Условное обозначение]])+0,99),SEARCH(" П",MID(Карта[[#This Row],[Условное обозначение]],SEARCH("М",Карта[[#This Row],[Условное обозначение]])+0,99))))),"-") -> В35 | B13: Бетонная смесь | C13: БСТ В35 П4 F₂300 W12 ГОСТ 7473-2010 | D13: =IF(Карта[[#This Row],[Условное обозначение]]="","",IF(Карта[[#This Row],[Вид смеси]]="Бетонная смесь",LEFTB(MID(Карта[[#This Row],[Условное обозначение]],SEARCH("F",Карта[[#This Row],[Условное обозначение]])+0,99),SEARCH(" Г",MID(Карта[[#This Row],[Условное обозначение]],SEARCH("F",Карта[[#This Row],[Условное обозначение]])+0,99))),LEFTB(MID(Карта[[#This Row],[Условное обозначение]],SEARCH("М",Карта[[#This Row],[Условное обозначение]])+0,99),SEARCH(" П",MID(Карта[[#This Row],[Условное обозначение]],SEARCH("М",Карта[[#This Row],[Условное обозначение]])+0,99))))) -> F₂300 W12 | E13: К.П №11 МТС/У | F13: =IFERROR(IF(Карта[[#This Row],[Вид смеси]]="Бетонная смесь",ROUND(RIGHT(Карта[[#This Row],[Класс]],LEN(Карта[[#This Row],[Класс]])-1)*$F$1,2),ROUND(RIGHT(Карта[[#This Row],[Класс]],LEN(Карта[[#This Row],[Класс]])-1)*$F$2,2)),"-") -> 44.8 | G13: =IF(Карта[[#This Row],[Условное обозначение]]="","",Карта[[#This Row],[Прочность]]*70%) -> 31.36 | H13: 420 | I13: =IF(Карта[[#This Row],[Условное обозначение]]="","",$I$2) -> Ритент Ультра | J13: 1 | K13: =IF(Карта[[#This Row],[Условное обозначение]]="","",Карта[[#This Row],[Расход цемента]]*Карта[[#This Row],[%, расход]]/100) -> 4.2 | L13: =IF(Карта[[#This Row],[Условное обозначение]]="","",$L$2) -> Ритент Аэр | M13: 0.15 | N13: =IF(Карта[[#This Row],[Условное обозначение]]="","",Карта[[#This Row],[Расход цемента]]*Карта[[#This Row],[%, расход2]]/100) -> 0.63 | O13: 265.7 | P13: =IFERROR(IF(Карта[[#This Row],[Вид смеси]]="Бетонная смесь",LEFTB(MID(Карта[[#This Row],[Условное обозначение]],SEARCH("П",Карта[[#This Row],[Условное обозначение]])+0,99),SEARCH(" F",MID(Карта[[#This Row],[Условное обозначение]],SEARCH("П",Карта[[#This Row],[Условное обозначение]])+0,99))),LEFTB(MID(Карта[[#This Row],[Условное обозначение]],SEARCH("П",Карта[[#This Row],[Условное обозначение]])+0,99),SEARCH(" Г",MID(Карта[[#This Row],[Условное обозначение]],SEARCH("П",Карта[[#This Row],[Условное обозначение]])+0,99)))),"-") -> П4 | Q13: =IFERROR(INDEX(Норматив[Параметры],MATCH(Карта[[#This Row],[Подвижность]],Норматив[Характеристика],1)),"-") -> П4 (16-20 см) | R13: =IF(Карта[[#This Row],[Вид смеси]]="Бетонная смесь","воздухововлечение - 4-6%","-") -> воздухововлечение - 4-6% | S13: От 1ч 30 мин до 3ч 00 мин
A14: =IFERROR(IF(Карта[[#This Row],[Вид смеси]]="Бетонная смесь",TRIM(LEFTB(SUBSTITUTE(MID(Карта[[#This Row],[Условное обозначение]],SEARCH(" ",Карта[[#This Row],[Условное обозначение]])+1,99)," ",REPT(" ",99)),99)),TRIM(LEFTB(MID(Карта[[#This Row],[Условное обозначение]],SEARCH("М",Карта[[#This Row],[Условное обозначение]])+0,99),SEARCH(" П",MID(Карта[[#This Row],[Условное обозначение]],SEARCH("М",Карта[[#This Row],[Условное обозначение]])+0,99))))),"-") -> В40 | B14: Бетонная смесь | C14: БСТ В40 П4 F₂300 W12 ГОСТ 7473-2010 | D14: =IF(Карта[[#This Row],[Условное обозначение]]="","",IF(Карта[[#This Row],[Вид смеси]]="Бетонная смесь",LEFTB(MID(Карта[[#This Row],[Условное обозначение]],SEARCH("F",Карта[[#This Row],[Условное обозначение]])+0,99),SEARCH(" Г",MID(Карта[[#This Row],[Условное обозначение]],SEARCH("F",Карта[[#This Row],[Условное обозначение]])+0,99))),LEFTB(MID(Карта[[#This Row],[Условное обозначение]],SEARCH("М",Карта[[#This Row],[Условное обозначение]])+0,99),SEARCH(" П",MID(Карта[[#This Row],[Условное обозначение]],SEARCH("М",Карта[[#This Row],[Условное обозначение]])+0,99))))) -> F₂300 W12 | E14: К.П №12 МТС/У | F14: =IFERROR(IF(Карта[[#This Row],[Вид смеси]]="Бетонная смесь",ROUND(RIGHT(Карта[[#This Row],[Класс]],LEN(Карта[[#This Row],[Класс]])-1)*$F$1,2),ROUND(RIGHT(Карта[[#This Row],[Класс]],LEN(Карта[[#This Row],[Класс]])-1)*$F$2,2)),"-") -> 51.2 | G14: =IF(Карта[[#This Row],[Условное обозначение]]="","",Карта[[#This Row],[Прочность]]*70%) -> 35.84 | H14: 440 | I14: =IF(Карта[[#This Row],[Условное обозначение]]="","",$I$2) -> Ритент Ультра | J14: 1 | K14: =IF(Карта[[#This Row],[Условное обозначение]]="","",Карта[[#This Row],[Расход цемента]]*Карта[[#This Row],[%, расход]]/100) -> 4.4 | L14: =IF(Карта[[#This Row],[Условное обозначение]]="","",$L$2) -> Ритент Аэр | M14: 0.15 | N14: =IF(Карта[[#This Row],[Условное обозначение]]="","",Карта[[#This Row],[Расход цемента]]*Карта[[#This Row],[%, расход2]]/100) -> 0.66 | O14: 265.7 | P14: =IFERROR(IF(Карта[[#This Row],[Вид смеси]]="Бетонная смесь",LEFTB(MID(Карта[[#This Row],[Условное обозначение]],SEARCH("П",Карта[[#This Row],[Условное обозначение]])+0,99),SEARCH(" F",MID(Карта[[#This Row],[Условное обозначение]],SEARCH("П",Карта[[#This Row],[Условное обозначение]])+0,99))),LEFTB(MID(Карта[[#This Row],[Условное обозначение]],SEARCH("П",Карта[[#This Row],[Условное обозначение]])+0,99),SEARCH(" Г",MID(Карта[[#This Row],[Условное обозначение]],SEARCH("П",Карта[[#This Row],[Условное обозначение]])+0,99)))),"-") -> П4 | Q14: =IFERROR(INDEX(Норматив[Параметры],MATCH(Карта[[#This Row],[Подвижность]],Норматив[Характеристика],1)),"-") -> П4 (16-20 см) | R14: =IF(Карта[[#This Row],[Вид смеси]]="Бетонная смесь","воздухововлечение - 4-6%","-") -> воздухововлечение - 4-6% | S14: От 1ч 30 мин до 3ч 00 мин
A15: =IFERROR(IF(Карта[[#This Row],[Вид смеси]]="Бетонная смесь",TRIM(LEFTB(SUBSTITUTE(MID(Карта[[#This Row],[Условное обозначение]],SEARCH(" ",Карта[[#This Row],[Условное обозначение]])+1,99)," ",REPT(" ",99)),99)),TRIM(LEFTB(MID(Карта[[#This Row],[Условное обозначение]],SEARCH("М",Карта[[#This Row],[Условное обозначение]])+0,99),SEARCH(" П",MID(Карта[[#This Row],[Условное обозначение]],SEARCH("М",Карта[[#This Row],[Условное обозначение]])+0,99))))),"-") -> В45 | B15: Бетонная смесь | C15: БСТ В45 П4 F₂300 W12 ГОСТ 7473-2010 | D15: =IF(Карта[[#This Row],[Условное обозначение]]="","",IF(Карта[[#This Row],[Вид смеси]]="Бетонная смесь",LEFTB(MID(Карта[[#This Row],[Условное обозначение]],SEARCH("F",Карта[[#This Row],[Условное обозначение]])+0,99),SEARCH(" Г",MID(Карта[[#This Row],[Условное обозначение]],SEARCH("F",Карта[[#This Row],[Условное обозначение]])+0,99))),LEFTB(MID(Карта[[#This Row],[Условное обозначение]],SEARCH("М",Карта[[#This Row],[Условное обозначение]])+0,99),SEARCH(" П",MID(Карта[[#This Row],[Условное обозначение]],SEARCH("М",Карта[[#This Row],[Условное обозначение]])+0,99))))) -> F₂300 W12 | E15: К.П №12 МТС/У | F15: =IFERROR(IF(Карта[[#This Row],[Вид смеси]]="Бетонная смесь",ROUND(RIGHT(Карта[[#This Row],[Класс]],LEN(Карта[[#This Row],[Класс]])-1)*$F$1,2),ROUND(RIGHT(Карта[[#This Row],[Класс]],LEN(Карта[[#This Row],[Класс]])-1)*$F$2,2)),"-") -> 57.6 | G15: =IF(Карта[[#This Row],[Условное обозначение]]="","",Карта[[#This Row],[Прочность]]*70%) -> 40.32 | H15: 440 | I15: =IF(Карта[[#This Row],[Условное обозначение]]="","",$I$2) -> Ритент Ультра | J15: 1 | K15: =IF(Карта[[#This Row],[Условное обозначение]]="","",Карта[[#This Row],[Расход цемента]]*Карта[[#This Row],[%, расход]]/100) -> 4.4 | L15: =IF(Карта[[#This Row],[Условное обозначение]]="","",$L$2) -> Ритент Аэр | M15: 0.15 | N15: =IF(Карта[[#This Row],[Условное обозначение]]="","",Карта[[#This Row],[Расход цемента]]*Карта[[#This Row],[%, расход2]]/100) -> 0.66 | O15: 265.7 | P15: =IFERROR(IF(Карта[[#This Row],[Вид смеси]]="Бетонная смесь",LEFTB(MID(Карта[[#This Row],[Условное обозначение]],SEARCH("П",Карта[[#This Row],[Условное обозначение]])+0,99),SEARCH(" F",MID(Карта[[#This Row],[Условное обозначение]],SEARCH("П",Карта[[#This Row],[Условное обозначение]])+0,99))),LEFTB(MID(Карта[[#This Row],[Условное обозначение]],SEARCH("П",Карта[[#This Row],[Условное обозначение]])+0,99),SEARCH(" Г",MID(Карта[[#This Row],[Условное обозначение]],SEARCH("П",Карта[[#This Row],[Условное обозначение]])+0,99)))),"-") -> П4 | Q15: =IFERROR(INDEX(Норматив[Параметры],MATCH(Карта[[#This Row],[Подвижность]],Норматив[Характеристика],1)),"-") -> П4 (16-20 см) | R15: =IF(Карта[[#This Row],[Вид смеси]]="Бетонная смесь","воздухововлечение - 4-6%","-") -> воздухововлечение - 4-6% | S15: От 1ч 30 мин до 3ч 00 мин
A16: =IFERROR(IF(Карта[[#This Row],[Вид смеси]]="Бетонная смесь",TRIM(LEFTB(SUBSTITUTE(MID(Карта[[#This Row],[Условное обозначение]],SEARCH(" ",Карта[[#This Row],[Условное обозначение]])+1,99)," ",REPT(" ",99)),99)),TRIM(LEFTB(MID(Карта[[#This Row],[Условное обозначение]],SEARCH("М",Карта[[#This Row],[Условное обозначение]])+0,99),SEARCH(" П",MID(Карта[[#This Row],[Условное обозначение]],SEARCH("М",Карта[[#This Row],[Условное обозначение]])+0,99))))),"-") -> М100 | B16: Растворная смесь | C16: Строительный раствор М100 Пк2 ГОСТ Р 58766-2019 | D16: =IF(Карта[[#This Row],[Условное обозначение]]="","",IF(Карта[[#This Row],[Вид смеси]]="Бетонная смесь",LEFTB(MID(Карта[[#This Row],[Условное обозначение]],SEARCH("F",Карта[[#This Row],[Условное обозначение]])+0,99),SEARCH(" Г",MID(Карта[[#This Row],[Условное обозначение]],SEARCH("F",Карта[[#This Row],[Условное обозначение]])+0,99))),LEFTB(MID(Карта[[#This Row],[Условное обозначение]],SEARCH("М",Карта[[#This Row],[Условное обозначение]])+0,99),SEARCH(" П",MID(Карта[[#This Row],[Условное обозначение]],SEARCH("М",Карта[[#This Row],[Условное обозначение]])+0,99))))) -> М100 | F16: =IFERROR(IF(Карта[[#This Row],[Вид смеси]]="Бетонная смесь",ROUND(RIGHT(Карта[[#This Row],[Класс]],LEN(Карта[[#This Row],[Класс]])-1)*$F$1,2),ROUND(RIGHT(Карта[[#This Row],[Класс]],LEN(Карта[[#This Row],[Класс]])-1)*$F$2,2)),"-") -> 9.8 | G16: =IF(Карта[[#This Row],[Условное обозначение]]="","",Карта[[#This Row],[Прочность]]*70%) -> 6.86 | I16: =IF(Карта[[#This Row],[Условное обозначение]]="","",$I$2) -> Ритент Ультра | K16: =IF(Карта[[#This Row],[Условное обозначение]]="","",Карта[[#This Row],[Расход цемента]]*Карта[[#This Row],[%, расход]]/100) -> 0 | L16: =IF(Карта[[#This Row],[Условное обозначение]]="","",$L$2) -> Ритент Аэр | N16: =IF(Карта[[#This Row],[Условное обозначение]]="","",Карта[[#This Row],[Расход цемента]]*Карта[[#This Row],[%, расход2]]/100) -> 0 | P16: =IFERROR(IF(Карта[[#This Row],[Вид смеси]]="Бетонная смесь",LEFTB(MID(Карта[[#This Row],[Условное обозначение]],SEARCH("П",Карта[[#This Row],[Условное обозначение]])+0,99),SEARCH(" F",MID(Карта[[#This Row],[Условное обозначение]],SEARCH("П",Карта[[#This Row],[Условное обозначение]])+0,99))),LEFTB(MID(Карта[[#This Row],[Условное обозначение]],SEARCH("П",Карта[[#This Row],[Условное обозначение]])+0,99),SEARCH(" Г",MID(Карта[[#This Row],[Условное обозначение]],SEARCH("П",Карта[[#This Row],[Условное обозначение]])+0,99)))),"-") -> Пк2 | Q16: =IFERROR(INDEX(Норматив[Параметры],MATCH(Карта[[#This Row],[Подвижность]],Норматив[Характеристика],1)),"-") -> Пк2 (От 4 до 8 см, включ.) | R16: =IF(Карта[[#This Row],[Вид смеси]]="Бетонная смесь","воздухововлечение - 4-6%","-") -> -
A17: =IFERROR(IF(Карта[[#This Row],[Вид смеси]]="Бетонная смесь",TRIM(LEFTB(SUBSTITUTE(MID(Карта[[#This Row],[Условное обозначение]],SEARCH(" ",Карта[[#This Row],[Условное обозначение]])+1,99)," ",REPT(" ",99)),99)),TRIM(LEFTB(MID(Карта[[#This Row],[Условное обозначение]],SEARCH("М",Карта[[#This Row],[Условное обозначение]])+0,99),SEARCH(" П",MID(Карта[[#This Row],[Условное обозначение]],SEARCH("М",Карта[[#This Row],[Условное обозначение]])+0,99))))),"-") -> - | D17: =IF(Карта[[#This Row],[Условное обозначение]]="","",IF(Карта[[#This Row],[Вид смеси]]="Бетонная смесь",LEFTB(MID(Карта[[#This Row],[Условное обозначение]],SEARCH("F",Карта[[#This Row],[Условное обозначение]])+0,99),SEARCH(" Г",MID(Карта[[#This Row],[Условное обозначение]],SEARCH("F",Карта[[#This Row],[Условное обозначение]])+0,99))),LEFTB(MID(Карта[[#This Row],[Условное обозначение]],SEARCH("М",Карта[[#This Row],[Условное обозначение]])+0,99),SEARCH(" П",MID(Карта[[#This Row],[Условное обозначение]],SEARCH("М",Карта[[#This Row],[Условное обозначение]])+0,99))))) ->  | F17: =IFERROR(IF(Карта[[#This Row],[Вид смеси]]="Бетонная смесь",ROUND(RIGHT(Карта[[#This Row],[Класс]],LEN(Карта[[#This Row],[Класс]])-1)*$F$1,2),ROUND(RIGHT(Карта[[#This Row],[Класс]],LEN(Карта[[#This Row],[Класс]])-1)*$F$2,2)),"-") -> - | G17: =IF(Карта[[#This Row],[Условное обозначение]]="","",Карта[[#This Row],[Прочность]]*70%) ->  | I17: =IF(Карта[[#This Row],[Условное обозначение]]="","",$I$2) ->  | K17: =IF(Карта[[#This Row],[Условное обозначение]]="","",Карта[[#This Row],[Расход цемента]]*Карта[[#This Row],[%, расход]]/100) ->  | L17: =IF(Карта[[#This Row],[Условное обозначение]]="","",$L$2) ->  | N17: =IF(Карта[[#This Row],[Условное обозначение]]="","",Карта[[#This Row],[Расход цемента]]*Карта[[#This Row],[%, расход2]]/100) ->  | P17: =IFERROR(IF(Карта[[#This Row],[Вид смеси]]="Бетонная смесь",LEFTB(MID(Карта[[#This Row],[Условное обозначение]],SEARCH("П",Карта[[#This Row],[Условное обозначение]])+0,99),SEARCH(" F",MID(Карта[[#This Row],[Условное обозначение]],SEARCH("П",Карта[[#This Row],[Условное обозначение]])+0,99))),LEFTB(MID(Карта[[#This Row],[Условное обозначение]],SEARCH("П",Карта[[#This Row],[Условное обозначение]])+0,99),SEARCH(" Г",MID(Карта[[#This Row],[Условное обозначение]],SEARCH("П",Карта[[#This Row],[Условное обозначение]])+0,99)))),"-") -> - | Q17: =IFERROR(INDEX(Норматив[Параметры],MATCH(Карта[[#This Row],[Подвижность]],Норматив[Характеристика],1)),"-") -> - | R17: =IF(Карта[[#This Row],[Вид смеси]]="Бетонная смесь","воздухововлечение - 4-6%","-") -> -
A18: =IFERROR(IF(Карта[[#This Row],[Вид смеси]]="Бетонная смесь",TRIM(LEFTB(SUBSTITUTE(MID(Карта[[#This Row],[Условное обозначение]],SEARCH(" ",Карта[[#This Row],[Условное обозначение]])+1,99)," ",REPT(" ",99)),99)),TRIM(LEFTB(MID(Карта[[#This Row],[Условное обозначение]],SEARCH("М",Карта[[#This Row],[Условное обозначение]])+0,99),SEARCH(" П",MID(Карта[[#This Row],[Условное обозначение]],SEARCH("М",Карта[[#This Row],[Условное обозначение]])+0,99))))),"-") -> - | D18: =IF(Карта[[#This Row],[Условное обозначение]]="","",IF(Карта[[#This Row],[Вид смеси]]="Бетонная смесь",LEFTB(MID(Карта[[#This Row],[Условное обозначение]],SEARCH("F",Карта[[#This Row],[Условное обозначение]])+0,99),SEARCH(" Г",MID(Карта[[#This Row],[Условное обозначение]],SEARCH("F",Карта[[#This Row],[Условное обозначение]])+0,99))),LEFTB(MID(Карта[[#This Row],[Условное обозначение]],SEARCH("М",Карта[[#This Row],[Условное обозначение]])+0,99),SEARCH(" П",MID(Карта[[#This Row],[Условное обозначение]],SEARCH("М",Карта[[#This Row],[Условное обозначение]])+0,99))))) ->  | F18: =IFERROR(IF(Карта[[#This Row],[Вид смеси]]="Бетонная смесь",ROUND(RIGHT(Карта[[#This Row],[Класс]],LEN(Карта[[#This Row],[Класс]])-1)*$F$1,2),ROUND(RIGHT(Карта[[#This Row],[Класс]],LEN(Карта[[#This Row],[Класс]])-1)*$F$2,2)),"-") -> - | G18: =IF(Карта[[#This Row],[Условное обозначение]]="","",Карта[[#This Row],[Прочность]]*70%) ->  | I18: =IF(Карта[[#This Row],[Условное обозначение]]="","",$I$2) ->  | K18: =IF(Карта[[#This Row],[Условное обозначение]]="","",Карта[[#This Row],[Расход цемента]]*Карта[[#This Row],[%, расход]]/100) ->  | L18: =IF(Карта[[#This Row],[Условное обозначение]]="","",$L$2) ->  | N18: =IF(Карта[[#This Row],[Условное обозначение]]="","",Карта[[#This Row],[Расход цемента]]*Карта[[#This Row],[%, расход2]]/100) ->  | P18: =IFERROR(IF(Карта[[#This Row],[Вид смеси]]="Бетонная смесь",LEFTB(MID(Карта[[#This Row],[Условное обозначение]],SEARCH("П",Карта[[#This Row],[Условное обозначение]])+0,99),SEARCH(" F",MID(Карта[[#This Row],[Условное обозначение]],SEARCH("П",Карта[[#This Row],[Условное обозначение]])+0,99))),LEFTB(MID(Карта[[#This Row],[Условное обозначение]],SEARCH("П",Карта[[#This Row],[Условное обозначение]])+0,99),SEARCH(" Г",MID(Карта[[#This Row],[Условное обозначение]],SEARCH("П",Карта[[#This Row],[Условное обозначение]])+0,99)))),"-") -> - | Q18: =IFERROR(INDEX(Норматив[Параметры],MATCH(Карта[[#This Row],[Подвижность]],Норматив[Характеристика],1)),"-") -> - | R18: =IF(Карта[[#This Row],[Вид смеси]]="Бетонная смесь","воздухововлечение - 4-6%","-") -> -
A19: =IFERROR(IF(Карта[[#This Row],[Вид смеси]]="Бетонная смесь",TRIM(LEFTB(SUBSTITUTE(MID(Карта[[#This Row],[Условное обозначение]],SEARCH(" ",Карта[[#This Row],[Условное обозначение]])+1,99)," ",REPT(" ",99)),99)),TRIM(LEFTB(MID(Карта[[#This Row],[Условное обозначение]],SEARCH("М",Карта[[#This Row],[Условное обозначение]])+0,99),SEARCH(" П",MID(Карта[[#This Row],[Условное обозначение]],SEARCH("М",Карта[[#This Row],[Условное обозначение]])+0,99))))),"-") -> - | D19: =IF(Карта[[#This Row],[Условное обозначение]]="","",IF(Карта[[#This Row],[Вид смеси]]="Бетонная смесь",LEFTB(MID(Карта[[#This Row],[Условное обозначение]],SEARCH("F",Карта[[#This Row],[Условное обозначение]])+0,99),SEARCH(" Г",MID(Карта[[#This Row],[Условное обозначение]],SEARCH("F",Карта[[#This Row],[Условное обозначение]])+0,99))),LEFTB(MID(Карта[[#This Row],[Условное обозначение]],SEARCH("М",Карта[[#This Row],[Условное обозначение]])+0,99),SEARCH(" П",MID(Карта[[#This Row],[Условное обозначение]],SEARCH("М",Карта[[#This Row],[Условное обозначение]])+0,99))))) ->  | F19: =IFERROR(IF(Карта[[#This Row],[Вид смеси]]="Бетонная смесь",ROUND(RIGHT(Карта[[#This Row],[Класс]],LEN(Карта[[#This Row],[Класс]])-1)*$F$1,2),ROUND(RIGHT(Карта[[#This Row],[Класс]],LEN(Карта[[#This Row],[Класс]])-1)*$F$2,2)),"-") -> - | G19: =IF(Карта[[#This Row],[Условное обозначение]]="","",Карта[[#This Row],[Прочность]]*70%) ->  | I19: =IF(Карта[[#This Row],[Условное обозначение]]="","",$I$2) ->  | K19: =IF(Карта[[#This Row],[Условное обозначение]]="","",Карта[[#This Row],[Расход цемента]]*Карта[[#This Row],[%, расход]]/100) ->  | L19: =IF(Карта[[#This Row],[Условное обозначение]]="","",$L$2) ->  | N19: =IF(Карта[[#This Row],[Условное обозначение]]="","",Карта[[#This Row],[Расход цемента]]*Карта[[#This Row],[%, расход2]]/100) ->  | P19: =IFERROR(IF(Карта[[#This Row],[Вид смеси]]="Бетонная смесь",LEFTB(MID(Карта[[#This Row],[Условное обозначение]],SEARCH("П",Карта[[#This Row],[Условное обозначение]])+0,99),SEARCH(" F",MID(Карта[[#This Row],[Условное обозначение]],SEARCH("П",Карта[[#This Row],[Условное обозначение]])+0,99))),LEFTB(MID(Карта[[#This Row],[Условное обозначение]],SEARCH("П",Карта[[#This Row],[Условное обозначение]])+0,99),SEARCH(" Г",MID(Карта[[#This Row],[Условное обозначение]],SEARCH("П",Карта[[#This Row],[Условное обозначение]])+0,99)))),"-") -> - | Q19: =IFERROR(INDEX(Норматив[Параметры],MATCH(Карта[[#This Row],[Подвижность]],Норматив[Характеристика],1)),"-") -> - | R19: =IF(Карта[[#This Row],[Вид смеси]]="Бетонная смесь","воздухововлечение - 4-6%","-") -> -
A20: =IFERROR(IF(Карта[[#This Row],[Вид смеси]]="Бетонная смесь",TRIM(LEFTB(SUBSTITUTE(MID(Карта[[#This Row],[Условное обозначение]],SEARCH(" ",Карта[[#This Row],[Условное обозначение]])+1,99)," ",REPT(" ",99)),99)),TRIM(LEFTB(MID(Карта[[#This Row],[Условное обозначение]],SEARCH("М",Карта[[#This Row],[Условное обозначение]])+0,99),SEARCH(" П",MID(Карта[[#This Row],[Условное обозначение]],SEARCH("М",Карта[[#This Row],[Условное обозначение]])+0,99))))),"-") -> - | D20: =IF(Карта[[#This Row],[Условное обозначение]]="","",IF(Карта[[#This Row],[Вид смеси]]="Бетонная смесь",LEFTB(MID(Карта[[#This Row],[Условное обозначение]],SEARCH("F",Карта[[#This Row],[Условное обозначение]])+0,99),SEARCH(" Г",MID(Карта[[#This Row],[Условное обозначение]],SEARCH("F",Карта[[#This Row],[Условное обозначение]])+0,99))),LEFTB(MID(Карта[[#This Row],[Условное обозначение]],SEARCH("М",Карта[[#This Row],[Условное обозначение]])+0,99),SEARCH(" П",MID(Карта[[#This Row],[Условное обозначение]],SEARCH("М",Карта[[#This Row],[Условное обозначение]])+0,99))))) ->  | F20: =IFERROR(IF(Карта[[#This Row],[Вид смеси]]="Бетонная смесь",ROUND(RIGHT(Карта[[#This Row],[Класс]],LEN(Карта[[#This Row],[Класс]])-1)*$F$1,2),ROUND(RIGHT(Карта[[#This Row],[Класс]],LEN(Карта[[#This Row],[Класс]])-1)*$F$2,2)),"-") -> - | G20: =IF(Карта[[#This Row],[Условное обозначение]]="","",Карта[[#This Row],[Прочность]]*70%) ->  | I20: =IF(Карта[[#This Row],[Условное обозначение]]="","",$I$2) ->  | K20: =IF(Карта[[#This Row],[Условное обозначение]]="","",Карта[[#This Row],[Расход цемента]]*Карта[[#This Row],[%, расход]]/100) ->  | L20: =IF(Карта[[#This Row],[Условное обозначение]]="","",$L$2) ->  | N20: =IF(Карта[[#This Row],[Условное обозначение]]="","",Карта[[#This Row],[Расход цемента]]*Карта[[#This Row],[%, расход2]]/100) ->  | P20: =IFERROR(IF(Карта[[#This Row],[Вид смеси]]="Бетонная смесь",LEFTB(MID(Карта[[#This Row],[Условное обозначение]],SEARCH("П",Карта[[#This Row],[Условное обозначение]])+0,99),SEARCH(" F",MID(Карта[[#This Row],[Условное обозначение]],SEARCH("П",Карта[[#This Row],[Условное обозначение]])+0,99))),LEFTB(MID(Карта[[#This Row],[Условное обозначение]],SEARCH("П",Карта[[#This Row],[Условное обозначение]])+0,99),SEARCH(" Г",MID(Карта[[#This Row],[Условное обозначение]],SEARCH("П",Карта[[#This Row],[Условное обозначение]])+0,99)))),"-") -> - | Q20: =IFERROR(INDEX(Норматив[Параметры],MATCH(Карта[[#This Row],[Подвижность]],Норматив[Характеристика],1)),"-") -> - | R20: =IF(Карта[[#This Row],[Вид смеси]]="Бетонная смесь","воздухововлечение - 4-6%","-") -> -
A21: =IFERROR(IF(Карта[[#This Row],[Вид смеси]]="Бетонная смесь",TRIM(LEFTB(SUBSTITUTE(MID(Карта[[#This Row],[Условное обозначение]],SEARCH(" ",Карта[[#This Row],[Условное обозначение]])+1,99)," ",REPT(" ",99)),99)),TRIM(LEFTB(MID(Карта[[#This Row],[Условное обозначение]],SEARCH("М",Карта[[#This Row],[Условное обозначение]])+0,99),SEARCH(" П",MID(Карта[[#This Row],[Условное обозначение]],SEARCH("М",Карта[[#This Row],[Условное обозначение]])+0,99))))),"-") -> - | D21: =IF(Карта[[#This Row],[Условное обозначение]]="","",IF(Карта[[#This Row],[Вид смеси]]="Бетонная смесь",LEFTB(MID(Карта[[#This Row],[Условное обозначение]],SEARCH("F",Карта[[#This Row],[Условное обозначение]])+0,99),SEARCH(" Г",MID(Карта[[#This Row],[Условное обозначение]],SEARCH("F",Карта[[#This Row],[Условное обозначение]])+0,99))),LEFTB(MID(Карта[[#This Row],[Условное обозначение]],SEARCH("М",Карта[[#This Row],[Условное обозначение]])+0,99),SEARCH(" П",MID(Карта[[#This Row],[Условное обозначение]],SEARCH("М",Карта[[#This Row],[Условное обозначение]])+0,99))))) ->  | F21: =IFERROR(IF(Карта[[#This Row],[Вид смеси]]="Бетонная смесь",ROUND(RIGHT(Карта[[#This Row],[Класс]],LEN(Карта[[#This Row],[Класс]])-1)*$F$1,2),ROUND(RIGHT(Карта[[#This Row],[Класс]],LEN(Карта[[#This Row],[Класс]])-1)*$F$2,2)),"-") -> - | G21: =IF(Карта[[#This Row],[Условное обозначение]]="","",Карта[[#This Row],[Прочность]]*70%) ->  | I21: =IF(Карта[[#This Row],[Условное обозначение]]="","",$I$2) ->  | K21: =IF(Карта[[#This Row],[Условное обозначение]]="","",Карта[[#This Row],[Расход цемента]]*Карта[[#This Row],[%, расход]]/100) ->  | L21: =IF(Карта[[#This Row],[Условное обозначение]]="","",$L$2) ->  | N21: =IF(Карта[[#This Row],[Условное обозначение]]="","",Карта[[#This Row],[Расход цемента]]*Карта[[#This Row],[%, расход2]]/100) ->  | P21: =IFERROR(IF(Карта[[#This Row],[Вид смеси]]="Бетонная смесь",LEFTB(MID(Карта[[#This Row],[Условное обозначение]],SEARCH("П",Карта[[#This Row],[Условное обозначение]])+0,99),SEARCH(" F",MID(Карта[[#This Row],[Условное обозначение]],SEARCH("П",Карта[[#This Row],[Условное обозначение]])+0,99))),LEFTB(MID(Карта[[#This Row],[Условное обозначение]],SEARCH("П",Карта[[#This Row],[Условное обозначение]])+0,99),SEARCH(" Г",MID(Карта[[#This Row],[Условное обозначение]],SEARCH("П",Карта[[#This Row],[Условное обозначение]])+0,99)))),"-") -> - | Q21: =IFERROR(INDEX(Норматив[Параметры],MATCH(Карта[[#This Row],[Подвижность]],Норматив[Характеристика],1)),"-") -> - | R21: =IF(Карта[[#This Row],[Вид смеси]]="Бетонная смесь","воздухововлечение - 4-6%","-") -> -
A22: =IFERROR(IF(Карта[[#This Row],[Вид смеси]]="Бетонная смесь",TRIM(LEFTB(SUBSTITUTE(MID(Карта[[#This Row],[Условное обозначение]],SEARCH(" ",Карта[[#This Row],[Условное обозначение]])+1,99)," ",REPT(" ",99)),99)),TRIM(LEFTB(MID(Карта[[#This Row],[Условное обозначение]],SEARCH("М",Карта[[#This Row],[Условное обозначение]])+0,99),SEARCH(" П",MID(Карта[[#This Row],[Условное обозначение]],SEARCH("М",Карта[[#This Row],[Условное обозначение]])+0,99))))),"-") -> - | D22: =IF(Карта[[#This Row],[Условное обозначение]]="","",IF(Карта[[#This Row],[Вид смеси]]="Бетонная смесь",LEFTB(MID(Карта[[#This Row],[Условное обозначение]],SEARCH("F",Карта[[#This Row],[Условное обозначение]])+0,99),SEARCH(" Г",MID(Карта[[#This Row],[Условное обозначение]],SEARCH("F",Карта[[#This Row],[Условное обозначение]])+0,99))),LEFTB(MID(Карта[[#This Row],[Условное обозначение]],SEARCH("М",Карта[[#This Row],[Условное обозначение]])+0,99),SEARCH(" П",MID(Карта[[#This Row],[Условное обозначение]],SEARCH("М",Карта[[#This Row],[Условное обозначение]])+0,99))))) ->  | F22: =IFERROR(IF(Карта[[#This Row],[Вид смеси]]="Бетонная смесь",ROUND(RIGHT(Карта[[#This Row],[Класс]],LEN(Карта[[#This Row],[Класс]])-1)*$F$1,2),ROUND(RIGHT(Карта[[#This Row],[Класс]],LEN(Карта[[#This Row],[Класс]])-1)*$F$2,2)),"-") -> - | G22: =IF(Карта[[#This Row],[Условное обозначение]]="","",Карта[[#This Row],[Прочность]]*70%) ->  | I22: =IF(Карта[[#This Row],[Условное обозначение]]="","",$I$2) ->  | K22: =IF(Карта[[#This Row],[Условное обозначение]]="","",Карта[[#This Row],[Расход цемента]]*Карта[[#This Row],[%, расход]]/100) ->  | L22: =IF(Карта[[#This Row],[Условное обозначение]]="","",$L$2) ->  | N22: =IF(Карта[[#This Row],[Условное обозначение]]="","",Карта[[#This Row],[Расход цемента]]*Карта[[#This Row],[%, расход2]]/100) ->  | P22: =IFERROR(IF(Карта[[#This Row],[Вид смеси]]="Бетонная смесь",LEFTB(MID(Карта[[#This Row],[Условное обозначение]],SEARCH("П",Карта[[#This Row],[Условное обозначение]])+0,99),SEARCH(" F",MID(Карта[[#This Row],[Условное обозначение]],SEARCH("П",Карта[[#This Row],[Условное обозначение]])+0,99))),LEFTB(MID(Карта[[#This Row],[Условное обозначение]],SEARCH("П",Карта[[#This Row],[Условное обозначение]])+0,99),SEARCH(" Г",MID(Карта[[#This Row],[Условное обозначение]],SEARCH("П",Карта[[#This Row],[Условное обозначение]])+0,99)))),"-") -> - | Q22: =IFERROR(INDEX(Норматив[Параметры],MATCH(Карта[[#This Row],[Подвижность]],Норматив[Характеристика],1)),"-") -> - | R22: =IF(Карта[[#This Row],[Вид смеси]]="Бетонная смесь","воздухововлечение - 4-6%","-") -> -
A23: =IFERROR(IF(Карта[[#This Row],[Вид смеси]]="Бетонная смесь",TRIM(LEFTB(SUBSTITUTE(MID(Карта[[#This Row],[Условное обозначение]],SEARCH(" ",Карта[[#This Row],[Условное обозначение]])+1,99)," ",REPT(" ",99)),99)),TRIM(LEFTB(MID(Карта[[#This Row],[Условное обозначение]],SEARCH("М",Карта[[#This Row],[Условное обозначение]])+0,99),SEARCH(" П",MID(Карта[[#This Row],[Условное обозначение]],SEARCH("М",Карта[[#This Row],[Условное обозначение]])+0,99))))),"-") -> - | D23: =IF(Карта[[#This Row],[Условное обозначение]]="","",IF(Карта[[#This Row],[Вид смеси]]="Бетонная смесь",LEFTB(MID(Карта[[#This Row],[Условное обозначение]],SEARCH("F",Карта[[#This Row],[Условное обозначение]])+0,99),SEARCH(" Г",MID(Карта[[#This Row],[Условное обозначение]],SEARCH("F",Карта[[#This Row],[Условное обозначение]])+0,99))),LEFTB(MID(Карта[[#This Row],[Условное обозначение]],SEARCH("М",Карта[[#This Row],[Условное обозначение]])+0,99),SEARCH(" П",MID(Карта[[#This Row],[Условное обозначение]],SEARCH("М",Карта[[#This Row],[Условное обозначение]])+0,99))))) ->  | F23: =IFERROR(IF(Карта[[#This Row],[Вид смеси]]="Бетонная смесь",ROUND(RIGHT(Карта[[#This Row],[Класс]],LEN(Карта[[#This Row],[Класс]])-1)*$F$1,2),ROUND(RIGHT(Карта[[#This Row],[Класс]],LEN(Карта[[#This Row],[Класс]])-1)*$F$2,2)),"-") -> - | G23: =IF(Карта[[#This Row],[Условное обозначение]]="","",Карта[[#This Row],[Прочность]]*70%) ->  | I23: =IF(Карта[[#This Row],[Условное обозначение]]="","",$I$2) ->  | K23: =IF(Карта[[#This Row],[Условное обозначение]]="","",Карта[[#This Row],[Расход цемента]]*Карта[[#This Row],[%, расход]]/100) ->  | L23: =IF(Карта[[#This Row],[Условное обозначение]]="","",$L$2) ->  | N23: =IF(Карта[[#This Row],[Условное обозначение]]="","",Карта[[#This Row],[Расход цемента]]*Карта[[#This Row],[%, расход2]]/100) ->  | P23: =IFERROR(IF(Карта[[#This Row],[Вид смеси]]="Бетонная смесь",LEFTB(MID(Карта[[#This Row],[Условное обозначение]],SEARCH("П",Карта[[#This Row],[Условное обозначение]])+0,99),SEARCH(" F",MID(Карта[[#This Row],[Условное обозначение]],SEARCH("П",Карта[[#This Row],[Условное обозначение]])+0,99))),LEFTB(MID(Карта[[#This Row],[Условное обозначение]],SEARCH("П",Карта[[#This Row],[Условное обозначение]])+0,99),SEARCH(" Г",MID(Карта[[#This Row],[Условное обозначение]],SEARCH("П",Карта[[#This Row],[Условное обозначение]])+0,99)))),"-") -> - | Q23: =IFERROR(INDEX(Норматив[Параметры],MATCH(Карта[[#This Row],[Подвижность]],Норматив[Характеристика],1)),"-") -> - | R23: =IF(Карта[[#This Row],[Вид смеси]]="Бетонная смесь","воздухововлечение - 4-6%","-") -> -
C25: М100
C26: =TRIM(LEFTB(SUBSTITUTE(MID(C16,SEARCH(" ",C16)+1,99)," ",REPT(" ",99)),99)) -> раствор

Sheet КлассМарка
A1: Столбец1 | B1: Класс/Марка | D1: Смесь
A2: Бетонная смесь | B2: В5 | D2: Бетонная смесь
A3: Бетонная смесь | B3: В7,5 | D3: Растворная смесь
A4: Бетонная смесь | B4: В12,5
A5: Бетонная смесь | B5: В15
A6: Бетонная смесь | B6: В22,5
A7: Бетонная смесь | B7: В25
A8: Бетонная смесь | B8: В30
A9: Бетонная смесь | B9: В35
A10: Бетонная смесь | B10: В40
A11: Бетонная смесь | B11: В45
A12: Бетонная смесь | B12: В50
A13: Бетонная смесь | B13: В60
A14: Растворная смесь | B14: М100
A15: Растворная смесь | B15: М150
A16: Растворная смесь | B16: М200
A17: Растворная смесь | B17: М250
A18: Растворная смесь | B18: М300

Sheet Норматив
B2: Характеристика | C2: Параметры
B3: П1 | C3: П1 (1-4 см)
B4: П2 | C4: П2 (5-9 см)
B5: П3 | C5: П3 (10-15 см)
B6: П4 | C6: П4 (16-20 см)
B7: П5 | C7: П5 (более 20 см)
B8: Пк1 | C8: Пк1 (От 1 до 4 см, включ.)
B9: Пк2 | C9: Пк2 (От 4 до 8 см, включ.)
B10: Пк3 | C10: Пк3 (От 8 до 12 см, включ.)
B11: Пк4 | C11: Пк4 (От 12 до 14 см, включ.)
